bitfinex-derivatives/quotes_BNBF0:USTF0_20250303
["timestamp","ask_amount","ask_price","bid_price","bid_amount"]
[1741015436321,7.042,594.94,594.17,1.49946315]
[1741015436322,7.042,594.94,594.27,0.27005054]
[1741015436521,7.042,594.94,594.28,0.27005054]
[1741015436726,7.042,594.94,594.29,0.27003947]
[1741015436927,7.042,594.94,594.3,0.27003947]
[1741015437226,7.042,594.94,594.31,0.27003947]
[1741015437426,7.042,594.94,594.32,0.27003947]
[1741015437621,7.042,594.94,594.33,0.27003947]
[1741015437826,7.042,594.94,594.34,0.27003947]
[1741015438031,7.042,594.94,594.35,0.27003947]
[1741015438228,7.042,594.94,594.36,0.27003947]
[1741015438427,7.042,594.94,594.37,0.27003947]
[1741015438627,7.042,594.94,594.38,0.27003947]
[1741015438827,7.042,594.94,594.39,0.27003947]
[1741015439022,7.042,594.94,594.4,0.27003947]
[1741015439223,7.042,594.94,594.41,0.27003947]
[1741015439426,7.042,594.94,594.42,0.27003947]
[1741015439626,7.042,594.94,594.43,0.27003947]
[1741015439823,7.042,594.94,594.48,1.49946315]
[1741015440027,7.042,594.94,594.49,0.27000635]
[1741015440228,7.042,594.94,594.5,0.27000635]
[1741015440426,7.042,594.94,594.51,0.27000635]
[1741015440726,7.042,594.94,594.48,1.49946315]
[1741015441431,7.042,594.94,594.52,0.26998106]
[1741015441632,7.042,594.94,594.53,0.26998106]
[1741015441834,7.042,594.94,594.61,1.49946315]
[1741015442026,7.042,594.94,594.62,0.26998106]
[1741015442234,7.042,594.94,594.63,0.26998106]
[1741015442433,7.042,594.94,594.64,0.26998106]
[1741015442626,7.042,594.94,594.65,0.26998106]
[1741015442827,7.042,594.94,594.66,0.26998106]
[1741015443034,5.438,594.94,594.67,0.26998106]
[1741015443339,5.438,594.94,594.68,0.26998106]
[1741015443534,5.438,594.94,594.69,0.26998106]
[1741015443834,5.438,594.94,594.7,0.26998106]
[1741015444135,3.814,594.94,594.75,1.49946315]
[1741015444334,3.814,594.94,594.76,0.26998106]
[1741015444533,3.814,594.94,594.77,0.26998106]
[1741015444736,3.814,594.94,594.75,1.49946315]
[1741015444929,3.814,594.94,594.76,0.26998592]
[1741015445327,3.814,594.94,594.77,0.26998592]
[1741015445531,3.814,594.94,594.76,0.26998592]
[1741015445728,3.814,594.94,594.78,0.26998592]
[1741015445932,3.814,594.94,594.75,1.49946315]
[1741015445933,3.814,594.94,594.79,0.26998592]
[1741015446229,3.814,594.94,594.8,0.26998592]
[1741015446431,3.814,594.94,594.59,1.49946315]
[1741015446632,3.814,594.94,594.6,0.27007482]
[1741015447829,3.814,594.94,594.61,0.27007482]
[1741015448032,3.814,594.94,594.17,0.27007482]
[1741015448233,3.814,594.94,594.18,0.27007482]
[1741015448433,3.814,594.94,594.19,0.27007482]
[1741015448632,3.814,594.94,594.2,0.60666182]
[1741015448828,3.814,594.94,594.21,0.60665616]
[1741015449032,3.814,594.94,594.22,0.27007482]
[1741015449231,3.814,594.94,594.23,0.60664483]
[1741015449427,3.814,594.94,594.24,0.27007482]
[1741015449632,3.814,594.94,594.25,0.27007482]
[1741015449832,3.814,594.94,594.26,0.27007482]
[1741015450027,3.814,594.94,594.27,0.27007482]
[1741015450232,3.814,594.94,594.28,0.27007482]
[1741015450535,3.814,594.94,594.29,0.27007482]
[1741015450731,3.814,594.94,594.3,0.27007482]
[1741015450935,3.814,594.94,594.31,0.27007482]
[1741015451130,3.814,594.94,594.32,0.27007482]
[1741015451336,3.814,594.94,594.24,0.27007482]
[1741015451534,3.814,594.94,594.25,0.27007482]
[1741015451734,3.814,594.94,594.26,0.33655302]
[1741015451934,3.814,594.94,594.26,0.60662784]
[1741015452330,3.814,594.94,594.27,0.27007482]
[1741015452534,3.814,594.94,594.28,0.33654169]
[1741015452730,3.814,594.94,594.29,0.27007482]
[1741015452932,3.814,594.94,594.3,0.27007482]
[1741015453130,3.814,594.94,594.31,0.27007482]
[1741015453341,3.814,594.94,594.32,0.60659386]
[1741015453636,3.814,594.94,594.33,0.6065882]
[1741015453836,3.814,594.94,594.34,0.27007482]
[1741015454034,3.814,594.94,594.35,0.27007482]
[1741015454231,3.814,594.94,594.36,0.27007482]
[1741015454430,3.814,594.94,594.37,0.27007482]
[1741015454630,3.814,594.94,594.38,0.27007482]
[1741015454834,3.814,594.94,594.39,0.27007482]
[1741015455036,3.814,594.94,594.4,0.60654857]
[1741015455235,3.814,594.94,594.41,0.27007482]
[1741015455436,3.814,594.94,594.42,0.27007482]
[1741015455634,3.814,594.94,594.43,0.27007482]
[1741015455833,3.814,594.94,594.44,0.60652593]
[1741015456035,3.814,594.94,594.45,0.27005296]
[1741015456236,3.814,594.94,594.46,0.27005296]
[1741015456538,3.814,594.94,594.47,0.27005296]
[1741015456739,3.814,594.94,594.49,1.49946315]
[1741015456936,1.624,594.94,594.5,0.27005296]
[1741015457134,1.624,594.94,594.51,0.27005296]
[1741015457330,1.624,594.94,594.52,0.27005296]
[1741015457531,1.624,594.94,594.49,1.49946315]
[1741015457732,1.624,594.94,594.5,0.26993859]
[1741015457936,1.624,594.94,594.49,1.49946315]
[1741015457937,1.624,594.94,594.8,1.49946315]
[1741015458137,1.624,594.94,594.81,0.26993859]
[1741015458436,1.577,595.04,594.82,0.60617476]
[1741015458643,1.577,595.04,594.83,0.26993859]
[1741015458842,1.577,595.04,594.84,0.26993859]
[1741015459145,1.577,595.04,594.85,0.60611495]
[1741015459345,1.577,595.04,594.86,0.6061093]
[1741015459538,1.577,595.04,594.87,0.60610365]
[1741015459744,1.577,595.04,594.88,0.60609799]
[1741015460045,1.577,595.04,594.89,0.60609234]
[1741015460343,1.577,595.04,594.9,0.26989574]
[1741015460539,1.577,595.04,594.91,0.26989574]
[1741015460744,1.577,595.04,594.92,0.26989574]
[1741015461044,1.577,595.04,594.95,1.49946315]
[1741015461243,1.577,595.04,594.96,0.26989574]
[1741015461546,1.577,595.04,594.97,0.26989574]
[1741015461747,1.577,595.04,594.98,0.26989574]
[1741015461941,1.577,595.04,594.99,0.26989574]
[1741015462147,1.577,595.04,594.96,0.33615705]
[1741015462446,1.577,595.04,594.97,0.26995764]
[1741015462642,1.577,595.04,594.98,0.60610339]
[1741015462845,1.577,595.04,594.99,0.26995764]
[1741015464548,1.577,595.04,595.0,0.26995764]
[1741015464745,1.577,595.04,595.01,0.26995764]
[1741015464948,1.577,595.04,595.02,0.26995764]
[1741015465150,1.577,595.04,595.03,0.26995764]
[1741015467353,1.577,595.04,595.03,0.60607514]
[1741015468448,1.577,595.04,595.03,0.3361175]
[1741015468953,1.577,595.04,595.03,0.60615765]
[1741015469952,1.577,595.04,595.03,0.60613036]
[1741015474556,1.577,595.04,595.03,0.60611873]
[1741015477659,1.577,595.04,595.03,0.60613431]
[1741015480759,1.577,595.04,595.03,0.60625792]
[1741015481561,1.577,595.04,595.03,0.3361175]
[1741015481761,1.577,595.04,595.03,0.60632797]
[1741015482361,1.577,595.04,595.03,0.3361175]
[1741015482966,1.577,595.04,595.03,0.60635432]
[1741015483963,1.577,595.04,595.03,0.6064019]
[1741015485373,1.577,595.04,595.03,0.3361175]
[1741015490072,1.577,595.04,593.78,1.49946315]
[1741015490273,1.577,595.04,593.79,0.27030778]
[1741015490474,1.577,595.04,593.8,0.27030778]
[1741015490671,1.577,595.04,593.81,0.27030778]
[1741015490871,1.577,595.04,593.82,0.27030778]
[1741015491173,1.577,595.04,593.83,0.27030778]
[1741015491373,1.577,595.04,593.84,0.27030778]
[1741015491567,1.577,595.04,593.75,1.49946315]
[1741015491568,1.405,595.03,593.85,0.27030778]
[1741015491768,1.405,595.03,593.86,0.27030778]
[1741015491967,1.405,595.03,593.87,0.27030778]
[1741015492171,1.405,595.03,593.88,0.27030778]
[1741015492374,1.405,595.03,593.89,0.27030778]
[1741015492573,1.405,595.03,593.9,0.27030778]
[1741015492770,1.405,595.03,593.91,0.27030778]
[1741015492968,1.405,595.03,593.92,0.27030778]
[1741015493171,1.405,595.03,593.93,0.27030778]
[1741015493368,1.405,595.03,593.94,0.27030778]
[1741015493568,1.405,595.03,593.95,0.27030778]
[1741015493772,1.405,595.03,593.67,1.49946315]
[1741015493773,1.405,595.03,593.96,0.27030778]
[1741015493971,1.405,595.03,593.97,0.27030778]
[1741015494175,1.405,595.03,593.98,0.27030778]
[1741015494375,1.405,595.03,593.99,0.27030778]
[1741015494676,1.405,595.03,594.0,0.27030778]
[1741015494879,1.405,595.03,593.49,0.27030778]
[1741015495077,1.405,595.03,594.01,0.27030778]
[1741015495276,1.405,595.03,594.02,0.27030778]
[1741015495473,1.331,595.02,594.03,0.27030778]
[1741015495672,1.331,595.02,594.04,0.27030778]
[1741015495872,1.331,595.02,594.05,0.27030778]
[1741015496071,1.331,595.02,594.06,0.27030778]
[1741015496373,1.331,595.02,593.48,1.49946315]
[1741015496579,1.331,595.02,593.49,0.27041939]
[1741015496778,1.331,595.02,593.5,0.27041939]
[1741015496978,1.331,595.02,593.51,0.27041939]
[1741015497181,1.331,595.02,593.52,0.27041939]
[1741015497375,1.331,595.02,593.53,0.27041939]
[1741015497573,1.276,595.01,593.54,0.27041939]
[1741015497771,1.276,595.01,593.55,0.27041939]
[1741015497972,1.24499168,595.0,593.56,0.27041939]
[1741015498174,1.24499168,595.0,593.57,0.27041939]
[1741015498473,1.24499168,595.0,593.58,0.27041939]
[1741015498775,1.276,595.01,593.59,0.27041939]
[1741015498776,1.24499168,594.99,593.59,0.27041939]
[1741015498982,1.24499168,594.99,593.6,0.27041939]
[1741015499177,1.24499168,594.99,593.61,0.27041939]
[1741015499377,1.24499168,594.99,593.62,0.27041939]
[1741015499572,2.49099168,594.98,593.15,1.49946315]
[1741015499775,2.49099168,594.98,593.16,0.27046319]
[1741015500082,2.49099168,594.98,593.17,0.27046319]
[1741015500284,1.24499168,594.97,593.18,0.27046319]
[1741015500482,1.24499168,594.97,593.19,0.27046319]
[1741015500684,1.24499168,594.97,593.2,0.27046319]
[1741015500884,1.24499168,594.97,593.21,0.27046319]
[1741015501085,1.24499168,594.96,593.22,0.27046319]
[1741015501279,3.00174673,594.96,593.23,0.27046319]
[1741015501483,1.24499168,594.95,593.23,0.27046319]
[1741015502085,1.24499168,594.95,593.24,0.27046319]
[1741015502286,1.24499168,594.94,593.25,0.27046319]
[1741015502480,1.24499168,594.93,593.26,0.27046319]
[1741015502682,1.24499168,594.93,593.27,0.27046319]
[1741015502878,1.24499168,594.93,593.19,1.49946315]
[1741015503084,1.24499168,594.93,593.2,0.27050357]
[1741015503287,1.24499168,594.92,593.2,0.27050357]
[1741015503484,1.24499168,594.92,593.21,0.27050357]
[1741015503685,1.24499168,594.92,593.22,0.27050357]
[1741015503879,1.24499168,594.92,593.23,0.27050357]
[1741015504084,1.24499168,594.92,593.24,0.27050357]
[1741015504283,1.75676244,594.94,593.25,0.27050357]
[1741015504488,1.246,594.98,593.25,0.27050357]
[1741015504787,1.246,594.98,593.26,0.27050357]
[1741015505287,1.246,594.98,593.27,0.27050357]
[1741015505489,1.246,594.98,593.28,0.27050357]
[1741015505683,1.246,594.98,592.65,2.48993071]
[1741015505684,1.246,594.98,593.29,0.27050357]
[1741015505885,1.246,594.98,593.3,0.27050357]
[1741015506086,1.246,594.98,593.31,0.27050357]
[1741015506488,1.246,594.98,593.32,0.27050357]
[1741015506690,1.246,594.98,593.33,0.27050357]
[1741015506989,1.246,594.98,593.34,0.27050357]
[1741015507186,1.246,594.98,593.35,0.27050357]
[1741015507384,1.23892996,594.97,593.36,0.27050357]
[1741015507590,1.23892996,594.97,593.37,0.27050357]
[1741015507792,1.246,594.98,593.38,0.27050357]
[1741015507989,1.246,594.98,593.39,0.27050357]
[1741015508189,1.246,594.98,593.4,0.27050357]
[1741015508585,1.246,594.98,593.41,0.27050357]
[1741015508791,1.246,594.98,593.42,0.27050357]
[1741015509098,1.246,594.98,593.43,0.27050357]
[1741015509286,1.246,594.98,593.44,0.27050357]
[1741015509488,1.246,594.98,593.05,1.49946315]
[1741015509489,1.246,594.98,593.45,0.27050357]
[1741015509688,1.246,594.98,593.46,0.27050357]
[1741015509991,1.246,594.98,593.47,0.27050357]
[1741015510192,1.246,594.98,593.48,0.27050357]
[1741015510394,1.246,594.98,593.49,0.27050357]
[1741015510692,1.246,594.98,593.5,0.27050357]
[1741015510894,1.246,594.98,593.51,0.27050357]
[1741015511086,1.246,594.98,593.56,1.49946315]
[1741015511292,1.246,594.98,593.57,0.27050357]
[1741015511492,1.246,594.98,593.58,0.27050357]
[1741015511792,1.246,594.98,593.56,1.49946315]
[1741015511793,1.246,594.98,593.59,0.27050357]
[1741015511994,1.246,594.98,593.6,0.27050357]
[1741015512186,1.246,594.98,593.61,0.27050357]
[1741015512392,1.246,594.98,593.62,0.27050357]
[1741015512594,1.23610205,594.97,593.63,0.27050357]
[1741015512789,1.23610205,594.97,593.64,0.27050357]
[1741015512993,1.23610205,594.97,593.65,0.27050357]
[1741015513193,2.99262803,594.96,593.66,0.27050357]
[1741015513399,2.99262803,594.96,593.67,0.27050357]
[1741015513589,2.99262803,594.96,593.68,0.27050357]
[1741015513793,1.23610205,594.95,593.69,0.27050357]
[1741015514094,1.23610205,594.95,593.7,0.27050357]
[1741015514396,1.23610205,594.94,593.71,0.27050357]
[1741015514593,1.23610205,594.94,593.72,0.27050357]
[1741015514792,1.23610205,594.94,593.73,0.27050357]
[1741015514991,1.23610205,594.94,593.4,1.49946315]
[1741015514992,1.75652598,594.96,593.41,0.27050357]
[1741015515190,1.75652598,594.96,593.42,0.27050357]
[1741015515493,1.75652598,594.96,593.43,0.27050357]
[1741015515695,1.75652598,594.96,593.44,0.27050357]
[1741015515895,1.246,594.98,593.45,0.27050357]
[1741015516089,1.68101008,594.95,593.45,0.27050357]
[1741015516293,1.68125147,594.94,593.46,0.27050357]
[1741015516493,1.68125147,594.93,593.46,0.27050357]
[1741015516794,1.68125147,594.93,592.31,2.48993071]
[1741015516795,4.67271292,594.95,593.47,0.27050357]
[1741015516994,4.89043571,594.94,592.94,0.27050357]
[1741015517191,1.68127882,594.93,592.95,0.27050357]
[1741015517398,1.68127882,594.92,592.96,0.27050357]
[1741015517598,1.68127882,594.91,592.97,0.27050357]
[1741015517796,1.68127882,594.9,592.98,0.27050357]
[1741015517996,1.68127882,594.89,592.99,0.27050357]
[1741015518196,1.68127882,594.88,593.0,0.27050357]
[1741015518396,4.37183864,594.87,593.01,0.27050357]
[1741015518604,4.37183864,594.86,592.94,0.27050357]
[1741015518906,3.20915689,594.89,593.07,1.49946315]
[1741015519098,1.757487,594.85,593.08,0.27050357]
[1741015519297,4.37347176,594.84,593.08,0.27050357]
[1741015519506,4.37347176,594.83,593.08,0.27050357]
[1741015519703,4.37347176,594.82,593.08,0.27050357]
[1741015519901,1.62117666,594.8,593.09,0.27050357]
[1741015520102,4.37347176,594.79,593.1,0.27050357]
[1741015520301,1.62276846,594.72,593.11,0.27050357]
[1741015520502,4.37347176,594.71,593.12,0.27050357]
[1741015520801,5.59547176,594.7,593.13,0.27050357]
[1741015521001,4.37347176,594.69,593.07,1.49946315]
[1741015521196,4.37347176,594.68,593.08,0.27070594]
[1741015521397,4.37347176,594.67,593.09,0.27070594]
[1741015521602,1.222,594.7,593.1,0.27070594]
[1741015521603,1.68210452,594.66,593.1,0.27070594]
[1741015521804,1.68210452,594.65,593.11,0.27070594]
[1741015522003,1.68210452,594.64,593.12,0.27070594]
[1741015522301,3.20915689,594.64,593.13,0.27070594]
[1741015522505,3.20915689,594.64,593.14,0.27070594]
[1741015522702,3.20915689,594.64,593.15,0.27064096]
[1741015522902,3.20915689,594.64,593.16,0.27064096]
[1741015523206,3.20915689,594.64,593.17,0.27064096]
[1741015523407,3.20915689,594.64,593.18,0.27064096]
[1741015523606,1.23475562,594.63,593.19,0.27064096]
[1741015523803,2.44675562,594.63,593.2,0.27064096]
[1741015524001,1.23475562,594.62,593.21,0.27064096]
[1741015524305,1.23475562,594.62,593.22,0.27064096]
[1741015524505,1.23475562,594.62,593.24,0.33713168]
[1741015524706,1.23475562,594.62,593.25,0.27064096]
[1741015524908,1.23475562,594.61,593.27,0.33711463]
[1741015525103,3.20657977,594.61,593.28,0.27064096]
[1741015525303,3.20657977,594.61,593.29,0.27064096]
[1741015525608,3.20657977,594.6,593.3,0.27064096]
[1741015525804,1.68220667,594.59,593.31,0.27067158]
[1741015526007,1.68220667,594.58,593.28,0.27067158]
[1741015526207,1.68220667,594.57,593.29,0.27067158]
[1741015526509,1.68220667,594.56,593.3,0.27067158]
[1741015526709,1.68220667,594.55,593.28,0.27067158]
[1741015526907,1.23475562,594.59,593.29,0.27067158]
[1741015527209,3.20495688,594.54,593.3,0.27067158]
[1741015527504,1.68233228,594.53,593.31,0.27071424]
[1741015527704,1.68233228,594.52,593.32,0.27071424]
[1741015527903,3.20495688,594.52,593.28,0.27071424]
[1741015528103,3.20495688,594.52,593.29,0.27071424]
[1741015528303,1.212,594.63,593.27,0.33711463]
[1741015528304,1.23475562,594.51,593.3,0.27071424]
[1741015528509,1.23475562,594.51,593.28,0.27071424]
[1741015528708,1.23475562,594.51,593.29,0.27071424]
[1741015529005,2.91712959,594.5,593.3,0.27071424]
[1741015529210,1.68251796,594.49,593.28,0.27071424]
[1741015529411,1.68251796,594.48,593.29,0.27071424]
[1741015529714,1.68257523,594.47,593.3,0.27071424]
[1741015529910,1.23475562,594.5,593.31,0.27071424]
[1741015530111,3.20162823,594.46,593.32,0.27071424]
[1741015530302,3.20162823,594.46,593.27,0.33711463]
[1741015530303,3.20162823,594.46,593.33,0.27071424]
[1741015530608,3.20162823,594.46,593.34,0.27071424]
[1741015530809,1.23475562,594.45,593.35,0.27071424]
[1741015531110,1.23475562,594.45,593.36,0.27071424]
[1741015531311,1.23475562,594.45,593.37,0.27071424]
[1741015531511,1.23475562,594.44,593.38,0.27071424]
[1741015531807,1.23475562,594.44,593.39,0.27071424]
[1741015532007,1.23475562,594.43,593.41,0.3370351]
[1741015532212,1.23475562,594.43,593.42,0.27072213]
[1741015532412,1.23475562,594.43,593.43,0.27072213]
[1741015532614,1.23475562,594.43,593.44,0.27072213]
[1741015532814,1.23475562,594.43,593.46,0.3370067]
[1741015533113,1.23475562,594.42,593.47,0.27072213]
[1741015533615,1.23475562,594.41,593.48,0.33699534]
[1741015533810,1.23475562,594.41,593.49,0.27072213]
[1741015534517,1.23475562,594.4,593.49,0.27072213]
[1741015535111,3.20280485,594.39,593.49,0.27072213]
[1741015535910,3.20280485,594.38,593.49,0.27072213]
[1741015536513,3.20280485,594.37,593.49,0.27072213]
[1741015536710,1.6827817,594.36,593.49,0.27072213]
[1741015536913,1.6827817,594.35,593.49,0.27072213]
[1741015537119,3.20280485,594.37,593.49,0.27072213]
[1741015537315,1.7578791,594.35,593.49,0.27072213]
[1741015538013,3.20280485,594.34,593.49,0.27072213]
[1741015538818,3.20280485,594.33,593.49,0.27072213]
[1741015539517,1.23475562,594.32,593.49,0.27072213]
[1741015539717,1.23475562,594.32,593.5,0.33698399]
[1741015539912,1.7578791,594.35,593.5,0.33698399]
[1741015540217,1.7578791,594.35,593.51,0.27078424]
[1741015540419,1.7578791,594.35,593.51,0.60776255]
[1741015540718,2.50449854,594.34,593.52,0.27078424]
[1741015540919,4.55249854,594.34,593.52,0.27078424]
[1741015541420,3.32,594.34,593.52,0.27078424]
[1741015541721,3.32,594.34,593.53,0.27075418]
[1741015541916,1.57,594.33,593.54,0.60771546]
[1741015542122,1.57,594.33,593.55,0.60770978]
[1741015542420,1.57,594.33,593.56,0.6077041]
[1741015542616,1.57,594.33,593.57,0.60769843]
[1741015542820,1.57,594.33,593.58,0.60769275]
[1741015543021,1.23356898,594.32,593.59,0.60768707]
[1741015543218,2.99134448,594.32,593.6,0.6076814]
[1741015543616,1.7577755,594.32,593.61,0.27075418]
[1741015543915,1.57,594.33,593.61,0.27075418]
[1741015545115,1.23552699,594.32,593.61,0.27075418]
[1741015546820,1.68294858,594.31,593.61,0.27075418]
[1741015547223,1.23552699,594.32,593.61,0.27075418]
[1741015547925,1.23552699,594.32,593.6,0.33692722]
[1741015548120,1.23552699,594.32,593.61,0.27081987]
[1741015548426,1.68291706,594.31,593.61,0.27081987]
[1741015548722,1.23552699,594.32,593.61,0.27081987]
[1741015549123,1.7578347,594.31,593.61,0.27081987]
[1741015549425,2.99336169,594.31,593.6,0.33692722]
[1741015549625,2.99336169,594.31,593.61,0.27082095]
[1741015549820,1.23552699,594.3,593.61,0.27082095]
[1741015550723,1.23552699,594.29,593.61,0.27082095]
[1741015551127,3.42004963,594.28,593.62,0.27084211]
[1741015551327,1.737,594.28,593.61,0.27084211]
[1741015551525,1.737,594.28,593.62,0.27084211]
[1741015551728,1.23552699,594.27,593.63,0.27084211]
[1741015551923,1.23552699,594.27,593.64,0.27084211]
[1741015552122,1.7579309,594.26,593.61,0.27084211]
[1741015552324,2.99345789,594.26,593.65,0.27084211]
[1741015552721,1.23552699,594.25,593.6,0.33692722]
[1741015552926,1.23552699,594.25,593.66,0.27084085]
[1741015553126,1.23552699,594.24,593.67,0.27084085]
[1741015553323,1.23552699,594.24,593.61,0.27084085]
[1741015553527,1.23552699,594.24,593.62,0.27084085]
[1741015553728,1.23552699,594.24,593.63,0.27084085]
[1741015553928,1.23552699,594.23,593.64,0.27084085]
[1741015554128,1.23552699,594.23,593.65,0.27084085]
[1741015554423,1.23552699,594.23,593.66,0.27084085]
[1741015554625,1.23552699,594.23,593.61,0.27084085]
[1741015554823,1.7579309,594.26,593.62,0.27084085]
[1741015555025,1.7579309,594.26,593.61,0.27084085]
[1741015555227,1.7579309,594.26,593.6,0.33692722]
[1741015555228,1.7579309,594.26,593.62,0.27084085]
[1741015555524,1.7579309,594.26,593.63,0.27084085]
[1741015555724,1.23748639,594.25,593.61,0.27084085]
[1741015555924,1.23748639,594.25,593.62,0.27084085]
[1741015556131,1.737,594.28,593.61,0.27084085]
[1741015556332,1.737,594.28,593.62,0.27084085]
[1741015556527,1.737,594.28,593.61,0.27084085]
[1741015556728,1.737,594.28,593.62,0.27084085]
[1741015556925,1.737,594.28,593.61,0.27084085]
[1741015557129,1.737,594.28,593.62,0.27084085]
[1741015557324,1.737,594.28,593.61,0.27084085]
[1741015557531,1.737,594.28,593.62,0.27077234]
[1741015557732,1.737,594.28,593.61,0.27077234]
[1741015557932,1.737,594.28,593.62,0.27077234]
[1741015558129,1.737,594.28,593.61,0.27077234]
[1741015558333,1.737,594.28,593.62,0.27077234]
[1741015558528,1.737,594.28,593.63,0.27077234]
[1741015558734,1.737,594.28,593.64,0.27077234]
[1741015558928,1.737,594.28,593.61,0.27077234]
[1741015559132,1.737,594.28,593.62,0.27077234]
[1741015559434,1.737,594.28,593.63,0.27077234]
[1741015559635,1.737,594.28,593.61,0.27077234]
[1741015559836,1.737,594.28,593.62,0.27077234]
[1741015560136,1.737,594.28,593.63,0.27077234]
[1741015560436,1.737,594.28,593.64,0.27077234]
[1741015560636,1.737,594.28,593.65,0.27076118]
[1741015560838,1.737,594.28,593.61,0.27076118]
[1741015561039,1.737,594.28,593.62,0.27076118]
[1741015561240,1.737,594.28,593.6,0.33692722]
[1741015561241,1.737,594.28,593.61,0.27076118]
[1741015561440,1.737,594.28,593.62,0.27076118]
[1741015561832,1.737,594.28,593.63,0.27077927]
[1741015562041,1.737,594.28,593.62,0.27077927]
[1741015562237,1.6831632,594.27,593.61,0.33692154]
[1741015562443,1.737,594.28,593.62,0.27086375]
[1741015562745,1.68315913,594.27,593.62,0.27086375]
[1741015563042,4.37627821,594.26,593.61,0.33692154]
[1741015563247,4.37627821,594.25,593.61,0.33692154]
[1741015563544,4.37627821,594.24,593.61,0.33692154]
[1741015563743,4.37627821,594.23,593.62,0.27091655]
[1741015563945,4.37627821,594.22,593.61,0.33692154]
[1741015564147,4.37675977,594.21,593.61,0.33692154]
[1741015564443,4.37675977,594.2,593.61,0.33692154]
[1741015564647,4.37675977,594.19,593.62,0.27095194]
[1741015564839,4.37675977,594.18,593.16,1.49946315]
[1741015565041,4.37675977,594.17,593.16,1.8366403]
[1741015565245,3.88799132,594.18,593.17,0.27093044]
[1741015565442,3.88799132,594.18,593.18,0.27093044]
[1741015565643,1.131,594.26,593.19,0.27093044]
[1741015565850,1.131,594.26,593.2,0.27093044]
[1741015566053,1.131,594.26,593.21,0.27093044]
[1741015566243,1.131,594.26,593.22,0.27093044]
[1741015566442,1.131,594.26,593.23,0.27093044]
[1741015566650,1.131,594.26,593.24,0.27093044]
[1741015566848,1.131,594.26,593.17,0.27093044]
[1741015567050,1.482,594.25,593.25,0.27093044]
[1741015567252,1.482,594.25,593.18,0.27093044]
[1741015567450,1.482,594.25,593.16,0.33717715]
[1741015567451,1.482,594.25,593.19,0.27093044]
[1741015567651,1.482,594.25,593.2,0.27093044]
[1741015567848,1.482,594.25,593.21,0.27093044]
[1741015568150,1.482,594.25,593.22,0.27093044]
[1741015568351,1.482,594.25,593.24,0.33713168]
[1741015568548,1.482,594.25,593.25,0.27093044]
[1741015568744,1.482,594.25,593.26,0.27093044]
[1741015568948,1.482,594.25,593.27,0.60804507]
[1741015569248,1.482,594.25,593.29,0.33710327]
[1741015569544,1.482,594.25,593.3,0.27093044]
[1741015569746,1.482,594.25,593.31,0.27093044]
[1741015569950,1.581,594.24,593.32,0.27093044]
[1741015570147,3.406,594.24,593.33,0.27093044]
[1741015570453,3.406,594.24,593.34,0.27093044]
[1741015570751,3.406,594.24,593.35,0.27093044]
[1741015570950,3.406,594.24,593.36,0.27093044]
[1741015571144,3.406,594.24,593.37,0.27093044]
[1741015571342,3.406,594.24,593.38,0.27093044]
[1741015571545,3.406,594.24,593.39,0.27093044]
[1741015571751,3.406,594.24,593.41,0.3370351]
[1741015571948,3.406,594.24,593.42,0.27093044]
[1741015572144,3.406,594.24,593.44,0.33701806]
[1741015572351,3.406,594.24,593.45,0.27093044]
[1741015572550,3.406,594.24,593.46,0.3370067]
[1741015572747,3.406,594.24,593.47,0.27093044]
[1741015573147,3.406,594.24,593.48,0.27093044]
[1741015573354,3.406,594.24,593.49,0.60792011]
[1741015573552,3.406,594.24,593.5,0.27093044]
[1741015573749,3.406,594.24,593.51,0.27093044]
[1741015573948,3.406,594.24,593.52,0.27093044]
[1741015574254,3.406,594.24,593.53,0.27093044]
[1741015574555,3.406,594.24,593.64,1.49946315]
[1741015574753,3.406,594.24,593.65,0.60782928]
[1741015574952,3.406,594.24,593.66,0.60782361]
[1741015575153,3.406,594.24,593.67,0.27060638]
[1741015576357,3.406,594.24,593.66,0.33689317]
[1741015576557,3.406,594.24,593.67,0.27064067]
[1741015576859,3.406,594.24,593.68,0.33688182]